Cogmind - Beta 13 @@@ ROGUE MODE // 2024.07.12 @ 12:37:22 Player: ThatBishHoly Result: Destroyed by QJ-2DH(B) with Heavy Battle Rifle Performance ------------- Evolutions (1) 500 Regions Visited (5) 1000 Robots Destroyed (23) 115 Value Destroyed (424) 424 Prototype IDs (0) 0 Alien Tech Used (0) 0 Bonus (39) 39 TOTAL SCORE: 2078 Bonus ------- Follower Combat Kills 58 Friendly Fire -19 Cogmind --------- Core Integrity 0/400 Matter 287/300 Energy 20/100 System Corruption 4% Temperature Cool (9) Movement Core (400) Ox7 Location -7/Zion Parts ------- > --- POWER (1) -------- (None) > --- PROPULSION (4) --- (None) > --- UTILITY (2) ------ Large Storage Unit > --- WEAPON (2) ------- Ripper > --- INVENTORY (15) --- Aluminum Leg Makeshift Leg Wheel Wheel Huge Storage Unit Melee Analysis Suite Actuator Array Actuator Array Actuator Array Axe Axe Peak State ------------ > --- POWER ------------ Light Nuclear Core > --- PROPULSION ------- Titanium Leg Titanium Leg Titanium Leg Titanium Leg > --- UTILITY ---------- Large Storage Unit Reflective Plating > --- WEAPON ----------- Beamcaster High-powered Shotgun > --- INVENTORY -------- Ion Engine Aluminum Leg Aluminum Leg Aluminum Leg Carbon-fiber Leg Wheel Wheel Huge Storage Unit Melee Analysis Suite Actuator Array Actuator Array Actuator Array Actuator Array Axe Axe [Rating: 30] Favorites ----------- Power Light Nuclear Core Engine Ion Engine Power Core Light Nuclear Core Propulsion Titanium Leg Leg Titanium Leg Wheel Wheel Utility Large Storage Unit Device Actuator Array Storage Large Storage Unit Protection Reflective Plating Weapon High-powered Shotgun Energy Gun Beamcaster Ballistic Gun High-powered Shotgun Slashing Weapon Ripper Build | -11 -10 -10 -9 -9 -7 ------- Run | Yrd Mat Min Mat Min Zio Slots Evolved 2 | . . . 2 . . Power . | . . . . . . Propulsion 2 | . . . 2 . . Utility . | . . . . . . Weapon . | . . . . . . Parts Attached 27 | 5 3 3 11 . 5 Power 3 | . 1 1 . . 1 Engine 2 | . 1 . . . 1 Core 1 | . . 1 . . . Reactor . | . . . . . . Propulsion 12 | 2 . . 8 . 2 Treads . | . . . . . . Leg 10 | . . . 8 . 2 Wheel 2 | 2 . . . . . Hover . | . . . . . . Flight . | . . . . . . Utility 7 | 1 2 1 2 . 1 Device 1 | . . . . . 1 Storage 5 | 1 2 . 2 . . Processor . | . . . . . . Hackware . | . . . . . . Protection 1 | . . 1 . . . Artifact . | . . . . . . Weapon 5 | 2 . 1 1 . 1 Energy Gun 3 | 2 . . 1 . . Energy Cannon . | . . . . . . Ballistic Gun 1 | . . 1 . . . Ballistic Cannon . | . . . . . . Launcher . | . . . . . . Special Weapon . | . . . . . . Impact Weapon . | . . . . . . Slashing Weapon 1 | . . . . . 1 Piercing Weapon . | . . . . . . Special Melee Weapon . | . . . . . . Unidentified Prototypes . | . . . . . . Parts Lost 13 | . . 2 . . 11 Power 2 | . . . . . 2 Propulsion 5 | . . . . . 5 Utility 2 | . . . . . 2 Weapon 4 | . . 2 . . 2 Highest Loss Streak 11 | . . 2 . . 11 To Critical Strikes . | . . . . . . Average Slot Usage (%) 92 | . 82 80 94 100 89 Engine 2 | . 11 5 . . . Core 8 | . . 8 11 11 7 Leg 29 | . . . 44 44 40 Wheel 8 | . 28 28 . . . Storage 11 | . 14 14 11 11 11 Protection 9 | . . 11 11 11 7 Energy Gun 10 | . 28 . 5 11 9 Ballistic Gun 9 | . . 11 11 11 9 Naked Turns . | . . . . . . Heaviest Build 92 | 9 29 32 92 37 37 Greatest Support 68 | 20 20 20 68 68 68 Greatest Overweight (x) 8 | . 1 1 1 . 8 Average Overweight (x) . | . . 1 . . . Largest Inventory Capacity 25 | 8 15 15 25 15 15 Average Capacity 14 | 6 12 15 17 15 15 Most Carried 15 | 3 2 7 15 15 14 Average Carried 10 | . . 4 12 14 13 Final Capacity 15 | 8 15 15 15 15 15 Final Carried 15 | . 1 7 15 14 11 Class Distribution -------------------- 97% | Mutant Dominant Class ---------------- Mutant | -10/Materials Mutant | -10/Mines Mutant | -9/Materials Mutant | -9/Mines Mutant | -7/Zion Resources | -11 -10 -10 -9 -9 -7 ----------- Run | Yrd Mat Min Mat Min Zio Matter Collected 502 | 250 30 86 118 16 2 Remotely . | . . . . . . Salvage Created 526 | . 136 108 45 140 97 Parts 52 | . 17 5 6 12 12 Haulers Intercepted 1 | . 1 . . . . Recyclers Shooed 1 | . . 1 . . . Parts Field Recycled . | . . . . . . Retrieved Matter . | . . . . . . Parts Self-Destructed . | . . . . . . Prevented . | . . . . . . Kills | -11 -10 -10 -9 -9 -7 ------- Run | Yrd Mat Min Mat Min Zio Combat Hostiles Destroyed 15 | . 6 3 1 5 . Guns 12 | . 3 3 1 5 . AOE 3 | . 3 . . . . Classes Destroyed 6 | . 2 1 1 1 1 Hauler 1 | . 1 . . . . Swarmer 9 | . 6 . . 3 . Grunt 3 | . . 3 . . . Duelist 1 | . . . 1 . . Sentry 2 | . . . . 2 . Zionite 7 | . . . . . 7 Best Kill Streak 7 | . 3 3 1 3 7 Combat Bots Only 3 | . 3 3 1 3 . Max Kills in Single Turn 3 | . 3 1 1 2 2 Gunslinging 1 | . . . . 1 . Exploded 3 | . 3 . . . . Melee . | . . . . . . Uniques/NPCs Destroyed . | . . . . . . Combat | -11 -10 -10 -9 -9 -7 -------- Run | Yrd Mat Min Mat Min Zio Hostile Shots Fired 144 | . 24 21 5 7 87 Missed 36 | . 9 3 1 . 23 Damage Taken 1985 | . 125 210 39 83 1528 Core 495 | . 9 68 . . 418 Absorbed by Shields . | . . . . . . Ignored by Resistances 43 | . . 23 8 4 8 Core Remaining (%) 84 | 100 . 69 . . . Volleys Fired 38 | . 12 15 2 4 5 Largest 2 | . 2 2 1 2 2 Hottest 100 | . 80 80 25 100 100 Shots Fired 60 | . 24 16 2 8 10 Gun 60 | . 24 16 2 8 10 Cannon . | . . . . . . Launcher . | . . . . . . Special . | . . . . . . Kinetic 25 | . . 14 2 4 5 Thermal 9 | . . . . 4 5 Explosive . | . . . . . . Electromagnetic 26 | . 24 2 . . . Robot Hit Streak 8 | . 2 8 1 4 8 Robot Miss Streak 6 | . 6 2 4 2 1 Penetration Max . | . . . . . . Secondary Targets 3 | . . . . 1 2 Max Gunslinging Chain 1 | . . . . 1 1 Shots Hit Robots 40 | . 9 14 1 6 10 Core Hits 29 | . 7 6 1 8 7 Critical Kills 1 | . . 1 . . . Critical Parts Destroyed . | . . . . . . Critical Strikes 3 | . 2 1 . . . Destroy 1 | . . 1 . . . Corrupt 2 | . 2 . . . . Melee Attacks 2 | . . . . . 2 Impact . | . . . . . . Slashing 2 | . . . . . 2 Piercing . | . . . . . . Sneak Attacks . | . . . . . . Combat Hostiles . | . . . . . . Follow-up Attacks . | . . . . . . Damage Inflicted 883 | . 194 258 14 163 254 Guns 669 | . 89 258 14 132 176 Cannons . | . . . . . . Explosions 105 | . 105 . . . . Melee 74 | . . . . . 74 Ramming 35 | . . . . 31 4 Kinetic 438 | . . 246 14 67 111 Thermal 235 | . 105 . . 65 65 Explosive . | . . . . . . Electromagnetic 101 | . 89 12 . . . Impact . | . . . . . . Slashing 74 | . . . . . 74 Piercing . | . . . . . . Highest Corruption 4 | . . . . . 4 Average Corruption 4 | . . . . . 4 Corruption Purged . | . . . . . . Corruption Blocked . | . . . . . . Effects 1 | . . . . . 1 Message Errors 1 | . . . . . 1 Overload Shots . | . . . . . . Overflow Damage 23 | . . . . . 23 Projectiles . | . . . . . . Explosions . | . . . . . . Melee 23 | . . . . . 23 Knockbacks 1 | . . . . . 1 Impact 1 | . . . . . 1 Kinetic . | . . . . . . Secondary . | . . . . . . Self-Inflicted Damage . | . . . . . . Shots . | . . . . . . Rammed . | . . . . . . Targets Rammed 6 | . . . . 5 1 Kicked 6 | . . . . 5 1 Crushed . | . . . . . . Highest Temperature 139 | . 86 39 . 99 139 Average Temperature 40 | . 33 21 . 51 67 Received Heat Transfer 408 | . . 150 24 18 216 Siege Activations . | . . . . . . Robots Corrupted . | . . . . . . Combat Hostiles . | . . . . . . Parts Fried . | . . . . . . Impact Corruptions . | . . . . . . Robots Melted . | . . . . . . Combat Hostiles . | . . . . . . Parts Melted . | . . . . . . Heat Transferred 272 | . 50 . . 111 111 Parts Sabotaged . | . . . . . . Parts Stolen . | . . . . . . Parts Stripped . | . . . . . . Power Chain Reactions 1 | . 1 . . . . Alert | -11 -10 -10 -9 -9 -7 ------- Run | Yrd Mat Min Mat Min Zio Peak Influence 190 | . 182 190 172 125 . Initial 74 | . . 70 74 66 . Average 105 | . 93 155 126 92 . Maximum Alert Level . | . . . . . . Low Security (%) 100 | 100 100 100 100 100 . Level 1 . | . . . . . . Level 2 . | . . . . . . Level 3 . | . . . . . . Level 4 . | . . . . . . Level 5 . | . . . . . . High Security . | . . . . . . Max Security . | . . . . . . Squads Dispatched 1 | . . 1 . . . Investigation 1 | . . 1 . . . Extermination . | . . . . . . Reinforcement . | . . . . . . Assault . | . . . . . . Garrison . | . . . . . . Intercept . | . . . . . . Searches Triggered . | . . . . . . Construction Impeded . | . . . . . . Haulers Reinforced . | . . . . . . Active Scanning Responses . | . . . . . . Cargo Convoy Interrupts . | . . . . . . Stealth | -11 -10 -10 -9 -9 -7 --------- Run | Yrd Mat Min Mat Min Zio Distress Signals . | . . . . . . Communications Jammed . | . . . . . . Distress Signals . | . . . . . . Times Spotted 32 | . 6 6 3 5 12 Peak Tracking Total 9 | . 4 3 2 3 9 Tactical Retreats 4 | . 1 3 . . . Traps | -11 -10 -10 -9 -9 -7 ------- Run | Yrd Mat Min Mat Min Zio Traps Triggered . | . . . . . . Indirectly . | . . . . . . Trap Hack Attempts . | . . . . . . Triggered . | . . . . . . Disarmed . | . . . . . . Reprogrammed . | . . . . . . Reused . | . . . . . . Traps Extracted . | . . . . . . Installed . | . . . . . . Triggered . | . . . . . . Machines | -11 -10 -10 -9 -9 -7 ---------- Run | Yrd Mat Min Mat Min Zio Machines Disabled 1 | . . . . 1 . Max in Single Turn 1 | . . . . 1 . Machines Repaired . | . . . . . . Machines Dismantled . | . . . . . . Machines Sabotaged . | . . . . . . Overloaded Fab Kills . | . . . . . . Hacking | -11 -10 -10 -9 -9 -7 --------- Run | Yrd Mat Min Mat Min Zio Machines Accessed 1 | . . 1 . . . Terminals . | . . . . . . Fabricators . | . . . . . . Repair Stations . | . . . . . . Recycling Units . | . . . . . . Scanalyzers . | . . . . . . Garrison Access . | . . . . . . Total Hacks 1 | . . 1 . . . Successful 1 | . . 1 . . . Failed . | . . . . . . Catastrophic . | . . . . . . Database Lockouts . | . . . . . . Manual . | . . . . . . Terminals . | . . . . . . Fabricators . | . . . . . . Repair Stations . | . . . . . . Recycling Units . | . . . . . . Scanalyzers . | . . . . . . Garrison Access . | . . . . . . Terminal Hacks 1 | . . 1 . . . Open Door 1 | . . 1 . . . Fabricator Hacks . | . . . . . . Repair Station Hacks . | . . . . . . Recycling Unit Hacks . | . . . . . . Scanalyzer . | . . . . . . Garrison Access Hacks . | . . . . . . Unauthorized Hacks . | . . . . . . Terminals . | . . . . . . Fabricators . | . . . . . . Repair Stations . | . . . . . . Recycling Units . | . . . . . . Scanalyzers . | . . . . . . Garrison Access . | . . . . . . Data Cores Recovered . | . . . . . . Used . | . . . . . . Hacking Detections . | . . . . . . Full Trace Events . | . . . . . . Feedback Events . | . . . . . . Feedback Blocked . | . . . . . . Robot Schematics Acquired . | . . . . . . Robots Built . | . . . . . . Authchips . | . . . . . . Time . | . . . . . . Total Robot Build Rating . | . . . . . . Part Schematics Acquired . | . . . . . . Parts Built . | . . . . . . Authchips . | . . . . . . Time . | . . . . . . Total Part Build Rating . | . . . . . . Parts Repaired . | . . . . . . Time . | . . . . . . Parts Recycled . | . . . . . . Recycled Matter . | . . . . . . Retrieved Matter . | . . . . . . Retrieved Components . | . . . . . . Parts Scanalyzed . | . . . . . . Part Schematics Acquired . | . . . . . . Parts Damaged . | . . . . . . Bothacking | -11 -10 -10 -9 -9 -7 ------------ Run | Yrd Mat Min Mat Min Zio Used RIF Installer . | . . . . . . Robots Hacked . | . . . . . . Non-combat . | . . . . . . Combat . | . . . . . . Robot Hacks Applied . | . . . . . . Relay Couplers Released . | . . . . . . Fabnet Peak Effective % . | . . . . . . Robots Rewired . | . . . . . . Allies Hacked . | . . . . . . Hacks Repelled . | . . . . . . Allies | -11 -10 -10 -9 -9 -7 -------- Run | Yrd Mat Min Mat Min Zio Total Allies 2 | . . 2 . . . Largest Group 2 | . . 2 2 2 2 Highest-Rated Group 45 | . . 45 45 45 45 Highest-Rated Ally 31 | . . 31 31 31 31 Total Orders . | . . . . . . Ally Attacks 10 | . . . 9 1 . Total Damage 145 | . . . 145 . . Kills 3 | . . . 3 . . Allies Corrupted . | . . . . . . Allies Melted . | . . . . . . Intel | -11 -10 -10 -9 -9 -7 ------- Run | Yrd Mat Min Mat Min Zio Robot Analysis Total . | . . . . . . Derelict Logs Recovered 3 | . . 1 . 2 . Drone Launches . | . . . . . . Drone Recoveries . | . . . . . . Exploration | -11 -10 -10 -9 -9 -7 ------------- Run | Yrd Mat Min Mat Min Zio Turns Passed 1560 | 59 201 283 168 677 172 Spaces Moved 941 | 64 175 205 80 352 65 Core 21 | 20 . . . . 1 Treads . | . . . . . . Legs 496 | . . . 80 352 64 Wheels 424 | 44 175 205 . . . Hover . | . . . . . . Flight . | . . . . . . Fastest Speed 50 | 50 80 95 120 130 125 Average Speed 111 | 70 87 95 144 130 134 Slowest Speed 450 | 80 95 95 200 130 450 Overloaded Moves . | . . . . . . Propulsion Burnouts . | . . . . . . Robots Hopped . | . . . . . . Cave-ins Triggered . | . . . . . . Exploration Rate (%) 30 | 4 26 42 7 89 17 Regions Visited 5 Branch Regions 3 Pre-discovered Areas 1 | . . . . 1 . Known Exits Taken . | . . . . . . Unknown Exits Taken 5 | 1 1 1 1 1 . Scrap Searched 2 | . . . . 2 . Spaces Dug . | . . . . . . Terrain Destroyed 5 | . 5 . . . . Melee . | . . . . . . Projectile . | . . . . . . AOE 5 | . 5 . . . . Terrain Rammed . | . . . . . . Walls Destroyed . | . . . . . . Machines Disabled . | . . . . . . Actions | -11 -10 -10 -9 -9 -7 --------- Run | Yrd Mat Min Mat Min Zio Total 1380 | 77 199 276 126 563 139 Wait 336 | 4 4 46 23 200 59 Move 936 | 63 174 204 79 351 65 Hop . | . . . . . . Pick Up 31 | 5 4 8 11 1 2 Fast Attach . | . . . . . . Attach 17 | 5 2 2 3 . 5 Detach . | . . . . . . Swap 10 | . 1 1 8 . . Drop 4 | . 2 . . 2 . Fire 38 | . 12 15 2 4 5 Melee 2 | . . . . . 2 Ram . | . . . . . . Kick 6 | . . . . 5 1 Crush . | . . . . . . Escape Stasis . | . . . . . . Rewire . | . . . . . . Trap . | . . . . . . Miscellaneous . | . . . . . . Route ------- -11/Scrapyard -10/Materials (discovered 2 exits: *Min x2) -10/Mines -9/Materials -9/Mines (discovered 2 exits: [*Mat] / [*Zio]) -7/Zion History --------- Turn | Location | Event 8 | -11/Scrapyard | Discovered new exit (range 15) 60 | -11/Scrapyard | Entered Materials 84 | -10/Materials | Discovered new exit (range 16) 243 | -10/Materials | Discovered new exit (range 7) 261 | -10/Materials | Entered Mines 304 | -10/Mines | Build established: Mutant 309 | -10/Mines | Met a Derelict shopkeep closing up shop 418 | -10/Mines | Learned Materials stockpile data 518 | -10/Mines | Discovered new exit (range 12) 544 | -10/Mines | Entered Materials 544 | -9/Materials | Accompanied by 2 allies 544 | -9/Materials | Evolved 2 slots: Propulsion x2 549 | -9/Materials | Led the pair of lost Derelicts to an unsafe place 615 | -9/Materials | Discovered new exit (range 16) 712 | -9/Materials | Entered Mines 712 | -9/Mines | Accompanied by 2 allies 715 | -9/Mines | Joined a pair of Derelicts in attacking an 0b10 outpost 793 | -9/Mines | Learned location of Zion (-7) 836 | -9/Mines | Discovered new exit (range 14) 872 | -9/Mines | Met a Derelict bent on vengeance 1128 | -9/Mines | Learned Materials garrison access intel 1293 | -9/Mines | A weapon hastily lodged in a ceiling crevice suddenly fell to the ground 1303 | -9/Mines | A Derelict revealed a hidden shortcut to a safe place 1389 | -9/Mines | Entered Zion 1389 | -7/Zion | Accompanied by 2 allies 1439 | -7/Zion | Led the pair of lost Derelicts to a safe place 1514 | -7/Zion | Attacked by Zionites 1517 | -7/Zion | Spotted QJ-2DH(B) 1542 | -7/Zion | Spotted 51-09M(B) 1545 | -7/Zion | Core integrity fell below 50% 1560 | -7/Zion | Core integrity fell below 20% 1561 | -7/Zion | Destroyed by QJ-2DH(B) with Heavy Battle Rifle Last Messages --------------- 01542_ Acquired Mak. Leg. 01544_ Carbon-fiber Leg destroyed. 01544_ TZ-M72(z) pulls a Mak. Spear out of the Twisted Machinery. 01546_ Slug penetrates TZ-M72(z). 01546_ TZ-M72(z) knocked back. 01549_ 88-5HD(z) emerges from the Twisted Machinery. 01549_ Critical hit (Burn: +37). 01549_ Acquired Mak. Power Source. 01550_ UFHXG